bitfinex-derivatives/quotes_BTCF0:USTF0_20250709
["timestamp","ask_amount","ask_price","bid_price","bid_amount"]
[1752063735367,0.2458391,109490.0,109480.0,0.38144739]
[1752063735568,0.44409832,109490.0,109480.0,0.38144739]
[1752063736263,0.2458391,109490.0,109480.0,0.57970661]
[1752063736467,0.1826391,109490.0,109480.0,0.64190661]
[1752063736667,0.1826391,109490.0,109480.0,1.02282163]
[1752063736869,0.39317751,109500.0,109490.0,0.1826391]
[1752063737067,1.07137751,109500.0,109490.0,1.00215754]
[1752063737267,0.39317751,109500.0,109490.0,0.80389832]
[1752063737464,1.07137751,109500.0,109490.0,0.6056391]
[1752063737668,1.07137751,109500.0,109490.0,0.80389832]
[1752063737867,1.07137751,109500.0,109490.0,0.6056391]
[1752063738077,1.07137751,109500.0,109490.0,0.80389832]
[1752063738573,0.39317751,109500.0,109490.0,0.80389832]
[1752063738765,0.39317751,109500.0,109490.0,0.80391538]
[1752063738967,1.07321751,109500.0,109490.0,0.80391538]
[1752063739675,1.07313751,109500.0,109490.0,0.80491538]
[1752063739868,1.07313751,109500.0,109490.0,0.6066391]
[1752063740066,1.07313751,109500.0,109490.0,0.80491538]
[1752063741560,0.39517751,109500.0,109490.0,0.80491538]
[1752063741767,1.07293751,109500.0,109490.0,0.424]
[1752063742169,1.07293751,109500.0,109490.0,0.6066391]
[1752063744674,1.07293751,109500.0,109490.0,0.80491538]
[1752063744881,0.39517751,109500.0,109490.0,0.80491538]
[1752063745067,1.07273751,109500.0,109490.0,0.80491538]
[1752063748880,0.2759519,109500.0,109490.0,0.84576544]
[1752063749078,0.9530319,109500.0,109490.0,1.20576544]
[1752063749279,0.9530319,109500.0,109490.0,0.84576544]
[1752063750179,0.2759519,109500.0,109490.0,0.84576544]
[1752063750382,0.9530319,109500.0,109490.0,0.80491538]
[1752063753189,0.9527119,109500.0,109490.0,0.80491538]
[1752063754680,0.002,109500.0,109490.0,1.18491538]
[1752063754887,0.8611424,109500.0,109490.0,1.18491538]
[1752063755287,0.1846224,109500.0,109490.0,1.18491538]
[1752063755788,0.81357695,109510.0,109500.0,0.1826224]
[1752063755789,0.00013695,109510.0,109500.0,0.1826224]
[1752063756096,0.18274275,109510.0,109500.0,1.22864874]
[1752063756390,0.00013695,109510.0,109500.0,1.22864874]
[1752063757089,0.00213695,109510.0,109500.0,1.22864874]
[1752063757382,0.00213695,109510.0,109500.0,1.42692502]
[1752063758392,0.00213695,109510.0,109500.0,1.22864874]
[1752063758784,0.00213695,109510.0,109500.0,1.22964874]
[1752063759184,0.00013695,109510.0,109500.0,1.22964874]
[1752063759385,0.00013695,109510.0,109500.0,1.23064874]
[1752063759585,0.00013695,109510.0,109500.0,1.24477168]
[1752063762484,0.00013695,109510.0,109500.0,1.20392162]
[1752063762691,0.00013695,109510.0,109500.0,1.24464774]
[1752063762986,0.0318,109530.0,109500.0,1.44294162]
[1752063763209,0.0318,109530.0,109520.0,0.74166538]
[1752063763497,0.2143724,109530.0,109520.0,0.75578832]
[1752063763791,0.2448724,109530.0,109520.0,1.14828832]
[1752063764090,0.2448724,109530.0,109520.0,0.95001204]
[1752063764288,0.2448724,109530.0,109520.0,1.11658832]
[1752063764488,0.2478724,109530.0,109520.0,0.91831204]
[1752063764686,0.44614868,109530.0,109520.0,0.91831204]
[1752063766292,0.2478724,109530.0,109520.0,0.91831204]
[1752063766683,0.2458724,109530.0,109520.0,0.91831204]
[1752063767492,0.44414868,109530.0,109520.0,0.91831204]
[1752063768698,0.2458724,109530.0,109520.0,0.91831204]
[1752063769096,0.44414868,109530.0,109520.0,0.91831204]
[1752063769494,0.2458724,109530.0,109520.0,0.91831204]
[1752063769693,0.44414868,109530.0,109520.0,0.91831204]
[1752063770703,0.2458724,109530.0,109520.0,0.91831204]
[1752063773999,0.2458724,109530.0,109520.0,0.9181712]
[1752063774000,0.44414868,109530.0,109520.0,0.9181712]
[1752063775303,0.2458724,109530.0,109520.0,0.9181712]
[1752063775604,0.44414868,109530.0,109520.0,0.9181712]
[1752063776904,0.44414868,109530.0,109520.0,0.91817345]
[1752063777905,0.2458724,109530.0,109520.0,0.91817345]
[1752063778107,0.2458724,109530.0,109520.0,0.9041891]
[1752063778606,0.44414868,109530.0,109520.0,0.9041891]
[1752063779405,0.9201124,109530.0,109520.0,1.10246538]
[1752063779804,0.9200324,109530.0,109520.0,1.13266538]
[1752063780808,0.9200324,109530.0,109520.0,0.9343891]
[1752063781201,0.2458724,109530.0,109520.0,1.13266538]
[1752063781701,0.9198724,109530.0,109520.0,0.9343891]
[1752063782504,0.44414868,109530.0,109520.0,0.7216]
[1752063782705,0.44414868,109530.0,109520.0,0.9041891]
[1752063783210,1.11806868,109530.0,109520.0,0.7216]
[1752063783610,0.9197924,109530.0,109520.0,0.9041891]
[1752063783813,1.11806868,109530.0,109520.0,0.9041891]
[1752063785107,1.11806868,109530.0,109520.0,0.7216]
[1752063785314,1.11806868,109530.0,109520.0,0.9041891]
[1752063785811,0.9197924,109530.0,109520.0,0.9041891]
[1752063786112,1.11806868,109530.0,109520.0,0.9041891]
[1752063786513,1.11806868,109530.0,109520.0,0.7216]
[1752063787009,0.9197924,109530.0,109520.0,0.9041891]
[1752063787215,1.11806868,109530.0,109520.0,0.7216]
[1752063787416,1.11806868,109530.0,109520.0,0.73585748]
[1752063788004,0.9197924,109530.0,109520.0,0.91844658]
[1752063788406,1.11806868,109530.0,109520.0,0.91844658]
[1752063788605,1.11806868,109530.0,109520.0,0.73585748]
[1752063788809,1.11806868,109530.0,109520.0,0.7216]
[1752063789006,1.11806868,109530.0,109520.0,0.73585942]
[1752063789211,1.11806868,109530.0,109520.0,0.91844852]
[1752063790222,0.9197924,109530.0,109520.0,0.91844852]
[1752063790417,1.11806868,109530.0,109520.0,0.73585942]
[1752063790615,1.19996508,109530.0,109520.0,0.73585942]
[1752063791119,1.11806868,109530.0,109520.0,0.73585942]
[1752063792518,1.19996508,109530.0,109520.0,0.37505942]
[1752063793322,1.19996508,109530.0,109520.0,0.37507253]
[1752063794512,1.0016888,109530.0,109520.0,0.37507253]
[1752063794712,1.19996508,109530.0,109520.0,0.37507253]
[1752063796128,0.72432136,109530.0,109520.0,0.37507253]
[1752063796314,1.39708136,109530.0,109520.0,0.37507253]
[1752063796515,1.39708136,109530.0,109520.0,0.01427253]
[1752063796719,1.39704136,109530.0,109520.0,0.01427253]
[1752063797616,1.39704136,109530.0,109510.0,0.3608]
[1752063797617,0.1825891,109520.0,109510.0,0.3608]
[1752063797822,0.44416538,109520.0,109510.0,0.3608]
[1752063799118,0.44416538,109520.0,109510.0,0.3750724]
[1752063800327,0.44416538,109520.0,109510.0,0.41674657]
[1752063800625,0.44416538,109520.0,109510.0,0.3760724]
[1752063802726,0.44416538,109520.0,109510.0,0.37607655]
[1752063803728,0.44416538,109520.0,109510.0,0.01527655]
[1752063804027,0.44416538,109520.0,109510.0,0.37607655]
[1752063804227,0.2458891,109520.0,109510.0,0.37607655]
[1752063804424,0.44416538,109520.0,109510.0,0.37607655]
[1752063804625,0.38086538,109520.0,109510.0,0.55868235]
[1752063804831,0.8545891,109520.0,109510.0,0.81895863]
[1752063805324,0.1825891,109520.0,109510.0,0.81895863]
[1752063805626,0.8545091,109520.0,109510.0,0.87033916]
[1752063806219,0.8545091,109520.0,109510.0,0.67206288]
[1752063806415,1.05278538,109520.0,109510.0,0.67206288]
[1752063807227,0.8545091,109520.0,109510.0,0.87033916]
[1752063807629,0.8545091,109520.0,109510.0,0.67206288]
[1752063807829,0.8545091,109520.0,109510.0,0.87033916]
[1752063808329,0.8545091,109520.0,109510.0,0.67206288]
[1752063808629,0.8543891,109520.0,109510.0,0.67206288]
[1752063808831,0.8543891,109520.0,109510.0,0.87033916]
[1752063809531,0.8543891,109520.0,109510.0,0.8596328]
[1752063810033,0.8542691,109520.0,109510.0,0.8596328]
[1752063812127,0.1825891,109520.0,109510.0,0.8596328]
[1752063812430,0.8539491,109520.0,109510.0,0.8596328]
[1752063813229,0.8539491,109520.0,109510.0,0.66135652]
[1752063814232,0.8539491,109520.0,109510.0,0.66135514]
[1752063819722,0.8539491,109520.0,109510.0,0.66119629]
[1752063820933,0.8532291,109520.0,109510.0,0.66119629]
[1752063821523,0.8532291,109520.0,109510.0,0.85947257]
[1752063821724,0.8532291,109520.0,109510.0,0.49867257]
[1752063821930,0.8532291,109520.0,109510.0,1.22027257]
[1752063822437,0.8532291,109520.0,109510.0,1.02199629]
[1752063822736,0.8532291,109520.0,109510.0,1.22027257]
[1752063823439,0.8532291,109520.0,109510.0,1.02199629]
[1752063823641,0.8532291,109520.0,109510.0,1.22027257]
[1752063824443,0.8532291,109520.0,109510.0,1.02199629]
[1752063824644,0.8532291,109520.0,109510.0,1.22027257]
[1752063825444,0.8532291,109520.0,109510.0,1.02199629]
[1752063825645,0.8532291,109520.0,109510.0,1.22027257]
[1752063826837,0.8532291,109520.0,109510.0,1.02199629]
[1752063827032,0.8532291,109520.0,109510.0,1.22027257]
[1752063828632,0.8532291,109520.0,109510.0,0.49867257]
[1752063828946,1.05144138,109520.0,109510.0,1.22020857]
[1752063831451,1.08184138,109520.0,109510.0,1.22020857]
[1752063831853,1.11394138,109520.0,109510.0,1.22020857]
[1752063832752,1.11394138,109520.0,109510.0,1.02199629]
[1752063832941,1.11394138,109520.0,109510.0,1.22020857]
[1752063833853,1.11394138,109520.0,109510.0,1.02199629]
[1752063834052,1.11394138,109520.0,109510.0,1.22020857]
[1752063834444,1.11394138,109520.0,109510.0,1.27444079]
[1752063834850,1.11394138,109520.0,109510.0,1.24394079]
[1752063837046,1.11394138,109520.0,109510.0,1.21244079]
[1752063837347,1.31215366,109520.0,109510.0,1.21244079]
[1752063838053,1.11394138,109520.0,109510.0,1.21244079]
[1752063838352,0.9157291,109520.0,109510.0,1.21244079]
[1752063838553,1.11394138,109520.0,109510.0,1.21244079]
[1752063839450,0.9157291,109520.0,109510.0,1.21244079]
[1752063840154,1.11394138,109520.0,109510.0,1.21244079]
[1752063840354,1.11214138,109520.0,109510.0,1.15820857]
[1752063842064,0.9139291,109520.0,109510.0,0.95999629]
[1752063842264,1.11214138,109520.0,109510.0,1.15819616]
[1752063842770,0.9139291,109520.0,109510.0,1.15819616]
[1752063843064,1.11214138,109520.0,109510.0,1.15819616]
[1752063843260,0.9139291,109520.0,109510.0,1.15819616]
[1752063843461,1.11214138,109520.0,109510.0,1.18929616]
[1752063845962,1.11214138,109520.0,109510.0,1.18944744]
[1752063847168,0.1825891,109520.0,109510.0,1.72765972]
[1752063847372,0.1825891,109520.0,109510.0,1.75845972]
[1752063847569,0.1825891,109520.0,109510.0,1.76916595]
[1752063847872,0.1825891,109520.0,109510.0,1.42933685]
[1752063848171,0.1825891,109520.0,109510.0,1.79933685]
[1752063848872,0.1825891,109520.0,109510.0,1.60107788]
[1752063849063,0.1825891,109520.0,109510.0,1.33291229]
[1752063849370,0.1825891,109520.0,109510.0,1.23107788]
[1752063849671,0.1825891,109520.0,109510.0,1.58107788]
[1752063849871,0.1825891,109520.0,109510.0,1.57037165]
[1752063850469,0.1825891,109520.0,109510.0,1.60530998]
[1752063851269,0.1825558,109540.0,109530.0,0.1825724]
[1752063851570,0.4208232,109550.0,109540.0,0.1825558]
[1752063851759,1.0885032,109550.0,109540.0,0.7875962]
[1752063851965,1.0885032,109550.0,109540.0,0.62253061]
[1752063852161,1.0885032,109550.0,109540.0,0.8206962]
[1752063852364,1.0885032,109550.0,109540.0,0.62253061]
[1752063853365,0.3389268,109550.0,109540.0,0.62253061]
[1752063853569,0.2748268,109550.0,109540.0,1.29017061]
[1752063853770,0.2748268,109550.0,109540.0,1.4883362]
[1752063854673,0.2758268,109550.0,109540.0,1.4883362]
[1752063855373,0.2758268,109550.0,109540.0,1.29017061]
[1752063855573,0.3077268,109550.0,109540.0,1.29017061]
[1752063858875,0.50589239,109550.0,109540.0,1.29017061]
[1752063859074,0.53749239,109550.0,109540.0,1.29017061]
[1752063861277,0.3393268,109550.0,109540.0,1.29017061]
[1752063865482,0.3393268,109550.0,109540.0,1.29001519]
[1752063867488,0.3393268,109550.0,109540.0,0.62237519]
[1752063867780,0.3393268,109550.0,109540.0,1.28853519]
[1752063868180,0.53749239,109550.0,109540.0,1.28853519]
[1752063868783,0.53745147,109550.0,109540.0,1.48665986]
[1752063869080,0.3393268,109550.0,109540.0,0.62237519]
[1752063869283,0.53745147,109550.0,109540.0,0.78869986]
[1752063870383,1.20345147,109550.0,109540.0,0.78869986]
[1752063871183,1.20345147,109550.0,109540.0,0.78868534]
[1752063876188,1.20345147,109550.0,109540.0,0.59056067]
[1752063876380,1.20345147,109550.0,109540.0,0.78868534]
[1752063877381,1.20345147,109550.0,109540.0,0.59056067]
[1752063877788,1.0053268,109550.0,109540.0,0.59056067]
[1752063878087,1.20345147,109550.0,109540.0,0.78868534]
[1752063878888,1.20345147,109550.0,109540.0,0.59056067]
[1752063879088,1.20345147,109550.0,109540.0,0.78868534]
[1752063879490,1.0053268,109550.0,109540.0,0.78868534]
[1752063879888,1.20345147,109550.0,109540.0,0.78868534]
[1752063880090,1.20345147,109550.0,109540.0,0.78885251]
[1752063880389,1.28534787,109550.0,109540.0,0.78885251]
[1752063881187,0.3577232,109550.0,109540.0,0.78885251]
[1752063881392,0.9314496,109550.0,109540.0,0.82105251]
[1752063881690,0.38267787,109550.0,109540.0,1.01917718]
[1752063881893,0.002,109550.0,109540.0,1.37917718]
[1752063882089,0.1845391,109550.0,109540.0,1.37917718]
[1752063882694,0.1845391,109550.0,109540.0,1.13984685]
[1752063883285,0.1845391,109550.0,109540.0,1.43984685]
[1752063883486,0.1845391,109550.0,109540.0,1.13984685]
[1752063883793,0.002,109550.0,109540.0,1.41984685]
[1752063884097,0.1845391,109550.0,109540.0,1.41984685]
[1752063884490,0.002,109550.0,109540.0,1.43984685]
[1752063884684,0.1845391,109550.0,109540.0,1.43984685]
[1752063884890,0.1845391,109550.0,109540.0,1.2416625]
[1752063885482,0.1845391,109550.0,109540.0,0.95182928]
[1752063885689,0.1845391,109550.0,109540.0,0.93755724]
[1752063885894,0.1845391,109550.0,109540.0,0.95182796]
[1752063888686,0.1845391,109550.0,109540.0,0.75376297]
[1752063889089,0.1845391,109550.0,109540.0,0.95182796]
[1752063889590,0.1845391,109550.0,109540.0,1.22182796]
[1752063889791,0.1845391,109550.0,109540.0,0.92182796]
[1752063890595,0.002,109550.0,109540.0,0.72376297]
[1752063890898,0.02582374,109560.0,109550.0,0.20191877]
[1752063891098,0.02582374,109560.0,109550.0,1.27252719]
[1752063891492,0.02582374,109560.0,109550.0,1.27252551]
[1752063891789,0.02582374,109560.0,109550.0,1.73846052]
[1752063891995,0.02582374,109560.0,109550.0,1.93652551]
[1752063892499,0.02782374,109560.0,109550.0,1.93652551]
[1752063892894,0.02782374,109560.0,109550.0,1.73846052]
[1752063893196,0.02907979,109560.0,109550.0,1.73846052]
[1752063893401,0.02907979,109560.0,109550.0,1.93652551]
[1752063893597,0.03207979,109560.0,109550.0,1.93652551]
[1752063894393,0.03207979,109560.0,109550.0,1.93652549]
[1752063894801,0.03207979,109560.0,109550.0,2.00755153]
[1752063895094,0.03207979,109560.0,109550.0,2.00752715]
[1752063895602,0.03207979,109560.0,109550.0,1.34380715]
[1752063895801,0.03207979,109560.0,109550.0,2.00744715]
[1752063896399,0.03207979,109560.0,109550.0,2.00740715]
[1752063896697,0.03207979,109560.0,109550.0,1.80926216]
[1752063896904,0.03207979,109560.0,109550.0,2.00732715]
[1752063897104,0.03207979,109560.0,109550.0,2.00732545]
[1752063897698,0.03207979,109560.0,109550.0,2.20539044]
[1752063897893,0.07651647,109570.0,109550.0,2.02285134]
[1752063898105,0.07651647,109570.0,109560.0,1.00135238]
[1752063898410,0.07651647,109570.0,109560.0,1.36632274]
[1752063898704,0.07651647,109570.0,109560.0,0.97019276]
[1752063899208,0.07651647,109570.0,109560.0,1.36632274]
[1752063899508,0.07651647,109570.0,109560.0,0.97019276]
[1752063899806,0.07651647,109570.0,109560.0,1.36632274]
[1752063900406,0.07951647,109570.0,109560.0,1.36632212]
[1752063900903,0.07951647,109570.0,109560.0,1.35562054]
[1752063902498,0.08051647,109570.0,109560.0,0.95949056]
[1752063902692,0.08051647,109570.0,109560.0,1.15755555]
[1752063903005,0.08051647,109570.0,109560.0,0.95949056]
[1752063903199,0.08051647,109570.0,109560.0,1.35562054]
[1752063904193,0.08051647,109570.0,109560.0,0.61949056]
[1752063904391,0.08051647,109570.0,109560.0,1.48055555]
[1752063904590,0.08051647,109570.0,109560.0,1.28249056]
[1752063905197,0.08051647,109570.0,109560.0,1.48047555]
[1752063905901,0.08051647,109570.0,109560.0,1.28229056]
[1752063906104,0.08051647,109570.0,109560.0,1.48035555]
[1752063906602,0.08051647,109570.0,109560.0,1.28229056]
[1752063906806,0.08051647,109570.0,109560.0,1.48035555]
[1752063907408,0.08051647,109570.0,109560.0,1.82035555]
[1752063908508,0.08051647,109570.0,109560.0,1.56035555]
[1752063908710,0.08051647,109570.0,109560.0,1.82035555]
[1752063911512,0.08051647,109570.0,109560.0,1.83105667]
[1752063911720,0.08051647,109570.0,109560.0,2.02912166]
[1752063913813,0.08051647,109570.0,109560.0,2.02860166]
[1752063914013,0.11111647,109570.0,109560.0,1.83053667]
[1752063916217,0.11111647,109570.0,109560.0,1.81983555]
[1752063916416,0.11111647,109570.0,109560.0,1.86042892]
[1752063917216,0.11111647,109570.0,109560.0,1.66236393]
[1752063917412,0.11111647,109570.0,109560.0,1.86042892]
[1752063918721,0.11111647,109570.0,109560.0,1.66236393]
[1752063918921,0.11111647,109570.0,109560.0,1.86042892]
[1752063919220,0.11111647,109570.0,109560.0,2.05849391]
[1752063920118,0.29362227,109570.0,109560.0,0.59818393]
[1752063920314,0.52488726,109570.0,109560.0,0.59818393]
[1752063920521,0.32682227,109570.0,109560.0,0.55759056]
[1752063920918,0.52487549,109570.0,109560.0,0.75564378]
[1752063921517,0.32682227,109570.0,109560.0,0.75564378]
[1752063921725,0.52487549,109570.0,109560.0,0.55759056]
[1752063921924,0.52487549,109570.0,109560.0,0.75564378]
[1752063922326,0.32682227,109570.0,109560.0,0.75564378]
[1752063922621,0.32682227,109570.0,109560.0,0.55759056]
[1752063923523,0.14431647,109570.0,109560.0,0.7556416]
[1752063923729,0.14431647,109570.0,109560.0,0.7884416]
[1752063925918,0.32682227,109570.0,109560.0,0.7884416]
[1752063927129,0.32682227,109570.0,109560.0,0.59039056]
[1752063927436,0.32682227,109570.0,109560.0,0.7884416]
[1752063928329,0.32682227,109570.0,109560.0,0.7556416]
[1752063928526,0.32682227,109570.0,109560.0,0.75564247]
[1752063928728,0.52487331,109570.0,109560.0,0.55759143]
[1752063929027,0.32682227,109570.0,109560.0,0.55759143]
[1752063929216,0.52487331,109570.0,109560.0,0.55759143]
[1752063929723,0.52487331,109570.0,109560.0,0.37506903]
[1752063930330,0.60676971,109570.0,109560.0,0.37506903]
[1752063930529,0.60676971,109570.0,109560.0,0.55759143]
[1752063931829,0.40871867,109570.0,109560.0,0.55759143]
[1752063932216,0.32682227,109570.0,109560.0,0.55759143]
[1752063934732,0.32682227,109570.0,109560.0,0.75564247]
[1752063935134,0.98774227,109570.0,109560.0,0.75564247]
[1752063935634,0.98774227,109570.0,109560.0,0.55759143]
[1752063935835,0.98774227,109570.0,109560.0,0.75564247]
[1752063936537,0.98774227,109570.0,109560.0,0.55759143]
[1752063936833,0.98774227,109570.0,109560.0,0.75564247]
[1752063938031,0.98774227,109570.0,109560.0,0.55759143]
[1752063938835,0.98774227,109570.0,109560.0,0.75564247]
[1752063939938,0.98774227,109570.0,109560.0,0.55759143]
[1752063940238,0.98774227,109570.0,109560.0,0.55759174]
[1752063940937,1.18579331,109570.0,109560.0,0.55759174]
[1752063941639,0.32682227,109570.0,109560.0,0.55759174]
[1752063941843,1.18535331,109570.0,109560.0,0.55759174]
[1752063942340,0.98730227,109570.0,109560.0,0.55759174]
[1752063942635,0.98730227,109570.0,109560.0,0.75564278]
[1752063942839,0.92342227,109570.0,109560.0,0.75564278]
[1752063943035,0.92342227,109570.0,109560.0,0.81814278]
[1752063943244,0.92342227,109570.0,109560.0,0.62009174]
[1752063943431,0.92342227,109570.0,109560.0,0.81814278]
[1752063943831,0.26302227,109570.0,109560.0,0.81814278]
[1752063944341,0.92334227,109570.0,109560.0,0.81814278]
[1752063944537,0.26302227,109570.0,109560.0,0.81814278]
[1752063944736,0.26302227,109570.0,109560.0,1.14814278]
[1752063944936,0.26302227,109570.0,109560.0,0.62009174]
[1752063945139,0.26302227,109570.0,109560.0,0.81814278]
[1752063945442,0.26302227,109570.0,109560.0,0.62009174]
[1752063945741,0.26302227,109570.0,109560.0,0.81814278]
[1752063946243,0.26302227,109570.0,109560.0,0.62009174]
[1752063946441,0.26302227,109570.0,109560.0,0.81814278]
[1752063948033,0.26302227,109570.0,109560.0,1.28025174]
[1752063948233,0.26302227,109570.0,109560.0,1.47830278]
[1752063948947,0.26302227,109570.0,109560.0,1.85830238]
[1752063950050,0.26302227,109570.0,109560.0,1.89892826]
[1752063950944,0.08051647,109570.0,109560.0,1.66962977]
[1752063951144,0.08051647,109570.0,109560.0,1.89962977]
[1752063951345,0.08051647,109570.0,109560.0,2.09768081]
[1752063951544,0.08051647,109570.0,109560.0,1.89962977]
[1752063951946,0.08051647,109570.0,109560.0,2.09768081]
[1752063954551,0.08051647,109570.0,109560.0,2.09770275]
[1752063954751,0.08051647,109570.0,109560.0,2.15206973]
[1752063955448,0.08051647,109570.0,109560.0,2.09770275]
[1752063955653,0.08051647,109570.0,109560.0,2.15206973]
[1752063955953,0.08051647,109570.0,109560.0,2.09770275]
[1752063956346,0.08051647,109570.0,109560.0,2.15206973]
[1752063957457,0.01497153,109580.0,109570.0,0.1825057]
[1752063957657,0.01497153,109580.0,109570.0,1.16899034]
[1752063958054,0.01497153,109580.0,109570.0,0.98163982]
[1752063958363,0.01497153,109580.0,109570.0,1.88909086]
[1752063958549,0.01497153,109580.0,109570.0,1.92973868]
[1752063959162,0.01597153,109580.0,109570.0,1.92973868]
[1752063960567,0.01597153,109580.0,109570.0,1.92973691]
[1752063961064,0.01497153,109580.0,109570.0,1.92973691]
[1752063961464,0.01497153,109580.0,109570.0,1.35168587]
[1752063961671,0.01497153,109580.0,109570.0,1.54973691]
[1752063962272,0.01497153,109580.0,109570.0,1.50908909]
[1752063962659,0.01497153,109580.0,109570.0,1.86908909]
[1752063962958,0.01497153,109580.0,109570.0,1.90973691]
[1752063963559,0.01497153,109580.0,109570.0,1.35168587]
[1752063963958,0.01497153,109580.0,109570.0,1.89973691]
[1752063964563,0.01497153,109580.0,109570.0,1.88037225]
[1752063964962,0.01497153,109580.0,109570.0,1.33232121]
[1752063965168,0.01497153,109580.0,109570.0,1.85037225]
[1752063966664,0.01497153,109580.0,109570.0,1.80972443]
[1752063967369,0.01497153,109580.0,109570.0,1.46475674]
[1752063967564,0.01497153,109580.0,109570.0,1.79475674]
[1752063968173,0.01497153,109580.0,109570.0,1.46475674]
[1752063968766,0.01497153,109580.0,109570.0,1.46467455]
[1752063969169,0.01497153,109580.0,109570.0,1.84467455]
[1752063969170,0.19746063,109580.0,109570.0,1.84467455]
[1752063969370,0.01497153,109580.0,109570.0,1.84467455]
[1752063969672,0.01497153,109580.0,109570.0,1.83467455]
[1752063969872,0.19746063,109580.0,109570.0,1.83467455]
[1752063970075,0.01497153,109580.0,109570.0,1.83467455]
[1752063970572,0.01497153,109580.0,109570.0,1.87532237]
[1752063971174,0.01497153,109580.0,109570.0,1.50532237]
[1752063971376,0.01497153,109580.0,109570.0,1.85532237]
[1752063971566,0.01497153,109580.0,109570.0,1.81467455]
[1752063971969,0.01497153,109580.0,109570.0,2.0126434]
[1752063972374,0.01497153,109580.0,109570.0,1.6626434]
[1752063972767,0.01497153,109580.0,109570.0,2.06329122]
[1752063973072,0.01497153,109580.0,109570.0,2.0226434]
[1752063973277,0.01497153,109580.0,109570.0,2.06329122]
[1752063973779,0.01697153,109580.0,109570.0,2.0226434]
[1752063975770,0.01697153,109580.0,109570.0,2.06329122]
[1752063979174,0.07937153,109580.0,109570.0,2.06329122]
[1752063979379,0.26186063,109580.0,109570.0,2.06329122]
[1752063979879,0.07937153,109580.0,109570.0,2.06329122]
[1752063980388,0.07937153,109580.0,109570.0,2.0226434]
[1752063981288,0.01697153,109580.0,109570.0,2.06329122]
[1752063981482,0.01697153,109580.0,109570.0,2.0226434]
[1752063981984,0.01697153,109580.0,109570.0,1.6267057]
[1752063982190,0.01697153,109580.0,109570.0,2.06329122]
[1752063982890,0.01697153,109580.0,109570.0,2.0882577]
[1752063983091,0.01697153,109580.0,109570.0,2.08825769]
[1752063984288,0.01697153,109580.0,109570.0,2.07755778]
[1752063984478,0.01697153,109580.0,109570.0,2.08825769]
[1752063985682,0.01697153,109580.0,109570.0,2.05825769]
[1752063985882,0.01697153,109580.0,109570.0,1.72825769]
[1752063986089,0.01697153,109580.0,109570.0,2.09825769]
[1752063986290,0.01697153,109580.0,109570.0,1.43885769]
[1752063986490,0.01697153,109580.0,109570.0,2.09645769]
[1752063987792,0.01697153,109580.0,109570.0,1.38885769]
[1752063987993,0.01697153,109580.0,109570.0,0.67291999]
[1752063988193,0.01697153,109580.0,109570.0,2.03637769]
[1752063988797,0.01697153,109580.0,109570.0,1.82770893]
[1752063989293,0.01697153,109580.0,109570.0,2.02567778]
[1752063989793,0.01697153,109580.0,109570.0,2.10637769]
[1752063990293,0.01697153,109580.0,109570.0,0.42631429]
[1752063990294,1.02791833,109580.0,109570.0,0.42631429]
[1752063990494,0.1825224,109560.0,109550.0,0.37392813]
[1752063990699,1.69521125,109560.0,109550.0,0.8326958]
[1752063990997,1.75751125,109560.0,109550.0,0.8326958]
[1752063991397,1.5595424,109560.0,109550.0,0.8326958]
[1752063991997,0.0623,109560.0,109550.0,1.1726958]
[1752063992196,0.9311349,109570.0,109560.0,0.1825224]
[1752063992391,0.9934349,109570.0,109560.0,0.74129125]
[1752063992795,0.9934349,109570.0,109560.0,0.74135408]
[1752063993391,1.19146658,109570.0,109560.0,0.5433224]
[1752063993797,1.19246658,109570.0,109560.0,0.5433224]
[1752063995288,0.53510658,109570.0,109560.0,0.5433224]
[1752063996188,0.53510658,109570.0,109560.0,0.3608]
[1752063996502,0.1825224,109560.0,109550.0,0.58909405]
[1752063996697,0.44415408,109560.0,109550.0,0.58909405]
[1752063996896,1.10123408,109560.0,109550.0,0.58909405]
[1752063997795,1.10123408,109560.0,109550.0,0.59009405]
[1752063999499,1.10123408,109560.0,109550.0,0.59109405]
[1752064000000,1.10111408,109560.0,109550.0,0.59109405]
[1752064002198,0.9030024,109560.0,109550.0,0.59109405]
[1752064002401,0.9030024,109560.0,109550.0,0.60536452]
[1752064003801,0.9028024,109560.0,109550.0,0.60536452]
[1752064005502,1.10083408,109560.0,109550.0,0.60536452]
[1752064006401,0.9028024,109560.0,109550.0,0.60536452]
[1752064006602,1.10083408,109560.0,109550.0,0.60536452]
[1752064007000,0.2461224,109560.0,109550.0,0.60536452]
[1752064007200,1.10071408,109560.0,109550.0,0.60536452]
[1752064007706,1.10059408,109560.0,109550.0,0.60536452]
[1752064011406,0.44415408,109560.0,109550.0,0.60536452]
[1752064011608,0.9024424,109560.0,109550.0,0.60536452]
[1752064011810,1.10047408,109560.0,109550.0,0.60536452]
[1752064012013,0.9024424,109560.0,109550.0,0.60536452]
[1752064012306,1.10047408,109560.0,109550.0,0.60536452]
[1752064012505,0.9024424,109560.0,109550.0,0.60536452]
[1752064012706,1.10047408,109560.0,109550.0,0.60536452]
[1752064013005,1.10051381,109560.0,109550.0,0.80343593]
[1752064013800,1.10051381,109560.0,109550.0,0.86693593]
[1752064013995,0.44419381,109560.0,109550.0,0.86693593]
[1752064014196,1.10027381,109560.0,109550.0,0.86693593]
[1752064014906,1.10023381,109560.0,109550.0,0.86693593]
[1752064019407,1.03663381,109560.0,109550.0,0.86693593]
[1752064021413,0.41299381,109560.0,109550.0,0.86693593]
[1752064021608,1.03619381,109560.0,109550.0,0.86693593]
[1752064022109,0.38059381,109560.0,109550.0,0.86693593]
[1752064022412,1.03615381,109560.0,109550.0,0.86693593]
[1752064024016,1.03615381,109560.0,109550.0,0.66886452]
[1752064024214,1.03615381,109560.0,109550.0,0.86693593]
[1752064025213,0.8380824,109560.0,109550.0,0.86693593]
[1752064025418,1.03615381,109560.0,109550.0,0.86693593]
[1752064027114,1.06715381,109560.0,109550.0,0.86693593]
[1752064027420,1.06675381,109560.0,109550.0,0.86693593]
[1752064028020,1.06675381,109560.0,109550.0,0.66886452]
[1752064028215,1.09885381,109560.0,109550.0,0.86693593]
[1752064028920,1.09885381,109560.0,109550.0,0.66886452]
[1752064029121,1.09885381,109560.0,109550.0,0.86693593]
[1752064029930,1.09885381,109560.0,109550.0,0.66886452]
[1752064030220,1.09885381,109560.0,109550.0,0.86693593]
[1752064030421,1.09885381,109560.0,109550.0,0.92130291]
[1752064031516,0.44369381,109560.0,109550.0,0.92130291]
[1752064031722,0.0456293,109570.0,109560.0,0.1825224]
[1752064031923,0.8830317,109570.0,109560.0,0.98393492]
[1752064032122,1.08110311,109570.0,109560.0,0.78586351]
[1752064032421,1.08106311,109570.0,109560.0,0.78586351]
[1752064032625,1.08106311,109570.0,109560.0,0.81766351]
[1752064033415,1.08102311,109570.0,109560.0,0.81766351]
[1752064033823,1.08202311,109570.0,109560.0,0.81766351]
[1752064034824,0.8839517,109570.0,109560.0,0.81766351]
[1752064035022,1.08202311,109570.0,109560.0,0.81766351]
[1752064035328,1.08202311,109570.0,109560.0,0.6195921]
[1752064035626,1.08202311,109570.0,109560.0,0.81766351]
[1752064036424,1.11312311,109570.0,109560.0,0.81766351]